lending/lending_fUSD_20240110
["ID","MTS","AMOUNT","RATE_DAILY","PERIOD"]
[311013793,1704870641808,-1062.88,0.00030136,2]
[311013795,1704870641820,-301.15627377,0.00030136,2]
[311013797,1704870641829,-500.0,0.00030136,2]
[311013799,1704870641838,-500.0,0.00030136,2]
[311013801,1704870641848,-500.0,0.00030136,2]
[311013803,1704870641858,-500.0,0.00030136,2]
[311013806,1704870641867,-500.0,0.00030136,2]
[311013808,1704870641878,-500.0,0.00030136,2]
[311013810,1704870641887,-562.17852185,0.00030136,2]
[311013812,1704870641896,-503.70718187,0.00030136,2]
[311013814,1704870641905,-793.88,0.00030136,2]
[311013816,1704870641914,-1033.76,0.00030136,2]
[311013817,1704870641924,-500.0,0.00030136,2]
[311013819,1704870641933,-560.67274826,0.00030136,2]
[311013821,1704870641942,-638.99,0.00030136,2]
[311013823,1704870641951,-638.92,0.00030136,2]
[311013825,1704870641961,-501.61400865,0.00030136,2]
[311013828,1704870641970,-759.71,0.00030136,2]
[311013830,1704870641980,-500.0,0.00030136,2]
[311013832,1704870641989,-793.17,0.00030136,2]
[311013834,1704870641998,-500.0,0.00030136,2]
[311013836,1704870642008,-500.0,0.00030136,2]
[311013838,1704870642017,-500.0,0.00030136,2]
[311013840,1704870642025,-500.0,0.00030136,2]
[311013842,1704870642034,-500.0,0.00030136,2]
[311013844,1704870642043,-500.0,0.00030136,2]
[311013846,1704870642053,-500.0,0.00030136,2]
[311013848,1704870642062,-500.0,0.00030136,2]
[311013850,1704870642073,-500.0,0.00030136,2]
[311013852,1704870642088,-617.09373414,0.00030136,2]
[311013855,1704870642098,-500.0,0.00030136,2]
[311013857,1704870642107,-500.0,0.00030136,2]
[311013858,1704870642116,-500.0,0.00030136,2]
[311013861,1704870642126,-500.0,0.00030136,2]
[311013863,1704870642136,-667.33,0.00030136,2]
[311013865,1704870642146,-905.26,0.00030136,2]
[311013867,1704870642157,-500.0,0.00030136,2]
[311013869,1704870642168,-500.0,0.00030136,2]
[311013872,1704870642185,-500.0,0.00030136,2]
[311013874,1704870642196,-2000.0,0.00030136,2]
[311013876,1704870642207,-500.0,0.00030136,2]
[311013879,1704870642217,-500.0,0.00030136,2]
[311013881,1704870642228,-500.0,0.00030136,2]
[311013883,1704870642239,-500.0,0.00030136,2]
[311013885,1704870642250,-636.92,0.00030136,2]
[311013887,1704870642261,-500.0,0.00030136,2]
[311013890,1704870642272,-500.0,0.00030136,2]
[311013892,1704870642282,-500.0,0.00030136,2]
[311013894,1704870642293,-500.0,0.00030136,2]
[311013896,1704870642303,-500.0,0.00030136,2]
[311013898,1704870642317,-500.0,0.00030136,2]
[311013900,1704870642328,-500.0,0.00030136,2]
[311013902,1704870642340,-505.67504228,0.00030136,2]
[311013904,1704870642352,-917.24,0.00030136,2]
[311013907,1704870642362,-552.15,0.00030136,2]
[311013909,1704870642373,-500.0,0.00030136,2]
[311013911,1704870642384,-500.0,0.00030136,2]
[311013914,1704870642399,-500.0,0.00030136,2]
[311013916,1704870642409,-500.0,0.00030136,2]
[311013918,1704870642420,-500.74861499,0.00030136,2]
[311013920,1704870642431,-500.0,0.00030136,2]
[311013922,1704870642441,-598.21,0.00030136,2]
[311013924,1704870642452,-500.0,0.00030136,2]
[311013926,1704870642463,-500.0,0.00030136,2]
[311013928,1704870642474,-792.71,0.00030136,2]
[311013930,1704870642485,-500.0,0.00030136,2]
[311013932,1704870642496,-500.0,0.00030136,2]
[311013935,1704870642513,-500.0,0.00030136,2]
[311013937,1704870642528,-500.0,0.00030136,2]
[311013939,1704870642540,-500.0,0.00030136,2]
[311013942,1704870642553,-500.0,0.00030136,2]
[311013944,1704870642566,-500.0,0.00030136,2]
[311013946,1704870642577,-500.0,0.00030136,2]
[311013948,1704870642588,-519.97306221,0.00030136,2]
[311013950,1704870642600,-888.63,0.00030136,2]
[311013952,1704870642612,-521.14,0.00030136,2]
[311013955,1704870642623,-504.38,0.00030136,2]
[311013957,1704870642635,-500.0,0.00030136,2]
[311013959,1704870642647,-220.33865149,0.00030136,2]
[311013961,1704870642659,-436.57955096,0.00030136,2]
[311013964,1704870642671,-741.73,0.00030136,2]
[311013966,1704870642683,-500.0,0.00030136,2]
[311013968,1704870642695,-500.0,0.00030136,2]
[311013970,1704870642707,-503.03796246,0.00030136,2]
[311013972,1704870642718,-500.0,0.00030136,2]
[311013975,1704870642729,-500.0,0.00030136,2]
[311013977,1704870642740,-500.0,0.00030136,2]
[311013979,1704870642752,-520.80369354,0.00030136,2]
[311013981,1704870642762,-500.0,0.00030136,2]
[311013983,1704870642774,-1006.76732116,0.00030136,2]
[311013986,1704870642785,-500.0,0.00030136,2]
[311013988,1704870642796,-234.3270971,0.00030136,2]
[311013990,1704870642807,-1198.51,0.00030136,2]
[311013992,1704870642819,-500.0,0.00030136,2]
[311013994,1704870642830,-500.0,0.00030136,2]
[311013996,1704870642840,-500.0,0.00030136,2]
[311013998,1704870642851,-500.0,0.00030136,2]
[311014001,1704870642863,-500.0,0.00030136,2]
[311014003,1704870642874,-500.0,0.00030136,2]
[311014005,1704870642886,-850.86,0.00030136,2]
[311014007,1704870642897,-500.0,0.00030136,2]
[311014010,1704870642908,-500.0,0.00030136,2]
[311014012,1704870642919,-500.0,0.00030136,2]
[311014014,1704870642930,-539.1,0.00030136,2]
[311014016,1704870642941,-669.53,0.00030136,2]
[311014019,1704870642956,-500.0,0.00030136,2]
[311014021,1704870642967,-500.0,0.00030136,2]
[311014024,1704870642978,-500.0,0.00030136,2]
[311014028,1704870642990,-667.35,0.00030136,2]
[311014031,1704870643001,-661.33,0.00030136,2]
[311014035,1704870643012,-500.0,0.00030136,2]
[311014038,1704870643024,-500.0,0.00030136,2]
[311014041,1704870643035,-500.0,0.00030136,2]
[311014044,1704870643046,-514.5824332,0.00030136,2]
[311014048,1704870643057,-500.0,0.00030136,2]
[311014050,1704870643068,-274.78110085,0.00030136,2]
[311014055,1704870643079,-500.0,0.00030136,2]
[311014058,1704870643089,-300.0,0.00030136,2]
[311014061,1704870643100,-1002.42556278,0.00030136,2]
[311014065,1704870643111,-500.0,0.00030136,2]
[311014068,1704870643123,-500.0,0.00030136,2]
[311014071,1704870643134,-163.72254972,0.00030136,2]
[311014074,1704870643146,-371.53539102,0.00030136,2]
[311014078,1704870643157,-504.01461438,0.00030136,2]
[311014080,1704870643168,-500.0,0.00030136,2]
[311014082,1704870643181,-500.0,0.00030136,2]
[311014084,1704870643192,-500.0,0.00030136,2]
[311014086,1704870643203,-500.0,0.00030136,2]
[311014087,1704870643213,-500.0,0.00030136,2]
[311014088,1704870643224,-500.0,0.00030136,2]
[311014089,1704870643235,-500.0,0.00030136,2]
[311014091,1704870643246,-501.31,0.00030136,2]
[311014093,1704870643256,-500.0,0.00030136,2]
[311014114,1704870643448,-500.0,0.00030136,2]
[311014116,1704870643458,-708.08,0.00030136,2]
[311014118,1704870643467,-500.0,0.00030136,2]
[311014120,1704870643477,-500.0,0.00030136,2]
[311014122,1704870643487,-500.0,0.00030136,2]
[311014124,1704870643496,-500.0,0.00030136,2]
[311014126,1704870643505,-883.3,0.00030136,2]
[311014128,1704870643514,-500.0,0.00030136,2]
[311014130,1704870643524,-341.34818452,0.00030136,2]
[311014132,1704870643533,-500.0,0.00030136,2]
[311014134,1704870643543,-523.78165557,0.00030136,2]
[311014136,1704870643553,-500.0,0.00030136,2]
[311014138,1704870643562,-782.91,0.00030136,2]
[311014140,1704870643574,-667.82,0.00030136,2]
[311014142,1704870643583,-500.0,0.00030136,2]
[311014145,1704870643592,-500.0,0.00030136,2]
[311014148,1704870643602,-500.0,0.00030136,2]
[311014151,1704870643611,-500.0,0.00030136,2]
[311014154,1704870643620,-500.0,0.00030136,2]
[311014157,1704870643630,-500.0,0.00030136,2]
[311014160,1704870643639,-500.0,0.00030136,2]
[311014162,1704870643649,-500.0,0.00030136,2]
[311014165,1704870643659,-504.16454214,0.00030136,2]
[311014168,1704870643669,-502.78406764,0.00030136,2]
[311014171,1704870643679,-500.0,0.00030136,2]
[311014174,1704870643689,-500.0,0.00030136,2]
[311014177,1704870643699,-500.0,0.00030136,2]
[311014180,1704870643708,-500.0,0.00030136,2]
[311014183,1704870643718,-500.0,0.00030136,2]
[311014186,1704870643727,-500.0,0.00030136,2]
[311014189,1704870643737,-500.0,0.00030136,2]
[311014192,1704870643746,-599.33,0.00030136,2]
[311014194,1704870643756,-500.0,0.00030136,2]
[311014196,1704870643767,-500.0,0.00030136,2]
[311014198,1704870643776,-670.68,0.00030136,2]
[311014200,1704870643786,-500.0,0.00030136,2]
[311014202,1704870643796,-500.0,0.00030136,2]
[311014204,1704870643805,-534.95262877,0.00030136,2]
[311014206,1704870643817,-459.40805297,0.00030136,2]
[311014208,1704870643827,-500.0,0.00030136,2]
[311014210,1704870643836,-500.0,0.00030136,2]
[311014212,1704870643847,-668.73,0.00030136,2]
[311014214,1704870643857,-500.0,0.00030136,2]
[311014216,1704870643867,-500.0,0.00030136,2]
[311014218,1704870643878,-500.0,0.00030136,2]
[311014220,1704870643888,-500.0,0.00030136,2]
[311014222,1704870643897,-1192.63,0.00030136,2]
[311014224,1704870643907,-500.0,0.00030136,2]
[311014226,1704870643917,-724.38,0.00030136,2]
[311014228,1704870643926,-500.0,0.00030136,2]
[311014230,1704870643936,-575.99258907,0.00030136,2]
[311014232,1704870643945,-518.96,0.00030136,2]
[311014234,1704870643955,-500.0,0.00030136,2]
[311014236,1704870643965,-500.0,0.00030136,2]
[311014238,1704870643975,-650.05,0.00030136,2]
[311014240,1704870643985,-527.91885287,0.00030136,2]
[311014242,1704870643995,-500.0,0.00030136,2]
[311014244,1704870644005,-500.0,0.00030136,2]
[311014246,1704870644015,-500.0,0.00030136,2]
[311014248,1704870644025,-500.0,0.00030136,2]
[311014250,1704870644035,-505.1638208,0.00030136,2]
[311014252,1704870644045,-500.0,0.00030136,2]
[311014254,1704870644055,-500.0,0.00030136,2]
[311014256,1704870644068,-423.23965956,0.00030136,2]
[311014258,1704870644078,-799.69,0.00030136,2]
[311014260,1704870644088,-500.0,0.00030136,2]
[311014262,1704870644097,-800.92,0.00030136,2]
[311014264,1704870644107,-500.0,0.00030136,2]
[311014266,1704870644117,-500.0,0.00030136,2]
[311014268,1704870644127,-715.96,0.00030136,2]
[311014270,1704870644137,-626.54,0.00030136,2]
[311014272,1704870644147,-574.84767592,0.00030136,2]
[311014274,1704870644156,-500.0,0.00030136,2]
[311014276,1704870644166,-500.0,0.00030136,2]
[311014278,1704870644175,-500.0,0.00030136,2]
[311014280,1704870644186,-504.49627788,0.00030136,2]
[311014282,1704870644195,-500.0,0.00030136,2]
[311014284,1704870644205,-500.0,0.00030136,2]
[311014285,1704870644214,-521.98878492,0.00030136,2]
[311014287,1704870644224,-500.0,0.00030136,2]
[311014289,1704870644234,-500.0,0.00030136,2]
[311014290,1704870644243,-991.62,0.00030136,2]
[311014292,1704870644253,-500.0,0.00030136,2]
[311014294,1704870644264,-500.0,0.00030136,2]
[311014296,1704870644275,-500.0,0.00030136,2]
[311014298,1704870644285,-500.0,0.00030136,2]
[311014299,1704870644296,-500.0,0.00030136,2]
[311014301,1704870644307,-500.0,0.00030136,2]
[311014303,1704870644321,-500.0,0.00030136,2]
[311014305,1704870644331,-500.0,0.00030136,2]
[311014306,1704870644341,-500.0,0.00030136,2]
[311014308,1704870644350,-1333.84,0.00030136,2]
[311014310,1704870644360,-503.63061238,0.00030136,2]
[311014312,1704870644370,-500.0,0.00030136,2]
[311014314,1704870644380,-1938.86,0.00030136,2]
[311014315,1704870644391,-607.56602244,0.00030136,2]
[311014317,1704870644400,-500.0,0.00030136,2]
[311014319,1704870644410,-500.0,0.00030136,2]
[311014321,1704870644421,-500.0,0.00030136,2]
[311014323,1704870644430,-500.0,0.00030136,2]
[311014324,1704870644440,-500.0,0.00030136,2]
[311014326,1704870644450,-500.0,0.00030136,2]
[311014328,1704870644459,-500.0,0.00030136,2]
[311014330,1704870644468,-500.0,0.00030136,2]
[311014331,1704870644477,-500.0,0.00030136,2]
[311014333,1704870644487,-640.48,0.00030136,2]
[311014335,1704870644496,-500.0,0.00030136,2]
[311014336,1704870644505,-500.0,0.00030136,2]
[311014338,1704870644514,-500.0,0.00030136,2]
[311014340,1704870644524,-500.0,0.00030136,2]
[311014342,1704870644534,-500.0,0.00030136,2]
[311014343,1704870644543,-501.86575627,0.00030136,2]
[311014345,1704870644553,-500.0,0.00030136,2]
[311014347,1704870644563,-500.0,0.00030136,2]
[311014349,1704870644574,-500.0,0.00030136,2]
[311014350,1704870644584,-500.0,0.00030136,2]
[311014352,1704870644595,-500.0,0.00030136,2]
[311014354,1704870644604,-620.47518466,0.00030136,2]
[311014356,1704870644614,-500.0,0.00030136,2]
[311014358,1704870644623,-500.0,0.00030136,2]
[311014360,1704870644632,-503.53206562,0.00030136,2]
[311014361,1704870644642,-1000.0,0.00030136,2]
[311014363,1704870644651,-500.0,0.00030136,2]
[311014365,1704870644662,-500.0,0.00030136,2]
[311014367,1704870644672,-500.0,0.00030136,2]
[311014369,1704870644683,-500.0,0.00030136,2]
[311014371,1704870644693,-718.42,0.00030136,2]
[311014373,1704870644702,-500.0,0.00030136,2]
[311014374,1704870644712,-500.0,0.00030136,2]
[311014376,1704870644721,-500.0,0.00030136,2]
[311014378,1704870644731,-771.27,0.00030136,2]
[311014380,1704870644743,-500.0,0.00030136,2]
[311014382,1704870644753,-500.0,0.00030136,2]
[311014384,1704870644762,-500.0,0.00030136,2]
[311014386,1704870644772,-500.0,0.00030136,2]
[311014387,1704870644781,-500.0,0.00030136,2]
[311014389,1704870644791,-500.0,0.00030136,2]
[311014391,1704870644804,-500.0,0.00030136,2]
[311014393,1704870644814,-500.0,0.00030136,2]
[311014395,1704870644825,-500.0,0.00030136,2]
[311014397,1704870644834,-500.0,0.00030136,2]
[311014399,1704870644844,-500.0,0.00030136,2]
[311014401,1704870644853,-774.85,0.00030136,2]
[311014434,1704870645183,-500.0,0.00030136,2]
[311014438,1704870645244,-928.92,0.00030136,2]
[311014440,1704870645254,-500.0,0.00030136,2]
[311014442,1704870645263,-500.0,0.00030136,2]
[311014444,1704870645276,-500.0,0.00030136,2]
[311014445,1704870645285,-500.0,0.00030136,2]
[311014447,1704870645294,-500.0,0.00030136,2]
[311014449,1704870645303,-500.0,0.00030136,2]
[311014451,1704870645313,-500.0,0.00030136,2]
[311014453,1704870645324,-500.0,0.00030136,2]
[311014454,1704870645333,-780.08,0.00030136,2]
[311014456,1704870645342,-410.58743911,0.00030136,2]
[311014458,1704870645354,-1923.01,0.00030136,2]
[311014460,1704870645363,-500.0,0.00030136,2]
[311014461,1704870645372,-500.0,0.00030136,2]
[311014462,1704870645381,-500.0,0.00030136,2]
[311014463,1704870645390,-500.0,0.00030136,2]
[311014464,1704870645399,-500.0,0.00030136,2]
[311014465,1704870645408,-608.56,0.00030136,2]
[311014466,1704870645417,-500.0,0.00030136,2]
[311014467,1704870645426,-873.71,0.00030136,2]
[311014468,1704870645436,-500.0,0.00030136,2]
[311014469,1704870645444,-1396.97,0.00030136,2]
[311014470,1704870645453,-503.67254125,0.00030136,2]
[311014471,1704870645462,-677.02,0.00030136,2]
[311014472,1704870645471,-1133.58,0.00030136,2]
[311014473,1704870645480,-500.0,0.00030136,2]
[311014474,1704870645489,-500.0,0.00030136,2]
[311014476,1704870645499,-1477.44,0.00030136,2]
[311014477,1704870645508,-500.0,0.00030136,2]
[311014478,1704870645517,-2005.32,0.00030136,2]
[311014480,1704870645527,-1432.66,0.00030136,2]
[311014483,1704870645537,-364.39165972,0.00030136,2]
[311014485,1704870645547,-500.0,0.00030136,2]
[311014487,1704870645557,-177.13685482,0.00030136,2]
[311014489,1704870645567,-500.0,0.00030136,2]
[311014490,1704870645576,-619.58,0.00030136,2]
[311014492,1704870645585,-500.0,0.00030136,2]
[311014494,1704870645595,-500.0,0.00030136,2]
[311014497,1704870645604,-1076.65,0.00030136,2]
[311014499,1704870645615,-500.0,0.00030136,2]
[311014501,1704870645625,-500.0,0.00030136,2]
[311014503,1704870645634,-500.0,0.00030136,2]
[311014505,1704870645644,-500.0,0.00030136,2]
[311014507,1704870645653,-500.0,0.00030136,2]
[311014509,1704870645663,-500.0,0.00030136,2]
[311014511,1704870645672,-500.0,0.00030136,2]
[311014513,1704870645682,-1230.48,0.00030136,2]
[311014515,1704870645691,-767.58,0.00030136,2]
[311014517,1704870645700,-500.0,0.00030136,2]
[311014519,1704870645709,-1735.14,0.00030136,2]
[311014521,1704870645719,-500.0,0.00030136,2]
[311014523,1704870645728,-500.0,0.00030136,7]
[311014525,1704870645737,-331.74180848,0.00030136,2]
[311014527,1704870645746,-500.0,0.00030136,2]
[311014529,1704870645756,-500.0,0.00030136,2]
[311014531,1704870645765,-500.0,0.00030136,2]
[311014533,1704870645774,-500.0,0.00030136,2]
[311014535,1704870645783,-500.0,0.00030136,2]
[311014537,1704870645792,-530.53,0.00030136,2]
[311014539,1704870645801,-500.0,0.00030136,2]
[311014541,1704870645810,-959.75,0.00030136,2]
[311014543,1704870645820,-500.0,0.00030136,2]
[311014545,1704870645829,-953.62,0.00030136,2]
[311014547,1704870645839,-185.72620339,0.00030136,2]
[311014549,1704870645848,-699.26,0.00030136,2]
[311014551,1704870645857,-569.16,0.00030136,2]
[311014553,1704870645867,-500.0,0.00030136,2]
[311014555,1704870645876,-424.39619154,0.00030136,2]
[311014557,1704870645885,-500.0,0.00030136,2]
[311014559,1704870645894,-500.0,0.00030136,2]
[311014561,1704870645903,-600.99,0.00030136,2]
[311014563,1704870645913,-500.0,0.00030136,2]
[311014565,1704870645922,-500.0,0.00030136,2]
[311014567,1704870645931,-1195.96,0.00030136,2]
[311014569,1704870645941,-738.14,0.00030136,2]
[311014571,1704870645950,-500.0,0.00030136,2]
[311014573,1704870645960,-500.0,0.00030136,2]
[311014576,1704870645969,-500.0,0.00030136,2]
[311014578,1704870645980,-500.0,0.00030136,2]
[311014580,1704870645990,-500.0,0.00030136,2]
[311014582,1704870646002,-1096.8,0.00030136,2]
[311014583,1704870646011,-911.75,0.00030136,2]
[311014586,1704870646021,-672.59,0.00030136,2]
[311014588,1704870646031,-500.0,0.00030136,2]
[311014590,1704870646040,-500.0,0.00030136,2]
[311014592,1704870646050,-1000.0,0.00030136,4]
[311014594,1704870646059,-500.0,0.00030136,2]
[311014596,1704870646070,-500.0,0.00030136,2]
[311014598,1704870646080,-500.0,0.00030136,2]
[311014600,1704870646089,-500.0,0.00030136,2]
[311014602,1704870646099,-500.0,0.00030136,2]
[311014604,1704870646108,-711.75,0.00030136,2]
[311014606,1704870646118,-500.0,0.00030136,2]
[311014608,1704870646127,-684.39,0.00030136,2]
[311014610,1704870646136,-500.0,0.00030136,2]
[311014612,1704870646145,-501.23462042,0.00030136,2]
[311014614,1704870646155,-502.2141009,0.00030136,2]
[311014616,1704870646164,-500.0,0.00030136,2]
[311014619,1704870646174,-500.0,0.00030136,2]
[311014621,1704870646184,-1581.5,0.00030136,2]
[311014623,1704870646193,-500.0,0.00030136,2]
[311014625,1704870646203,-500.0,0.00030136,2]
[311014627,1704870646212,-562.21,0.00030136,2]
[311014629,1704870646222,-506.92875916,0.00030136,2]
[311014631,1704870646231,-500.0,0.00030136,2]
[311014633,1704870646240,-1223.08,0.00030136,2]
[311014635,1704870646250,-500.0,0.00030136,2]
[311014637,1704870646259,-500.0,0.00030136,2]
[311014639,1704870646269,-500.0,0.00030136,2]
[311014641,1704870646279,-500.0,0.00030136,2]
[311014643,1704870646289,-500.0,0.00030136,2]
[311014645,1704870646299,-500.0,0.00030136,2]
[311014647,1704870646309,-574.07,0.00030136,2]
[311014649,1704870646322,-500.0,0.00030136,2]
[311014651,1704870646333,-500.0,0.00030136,2]
[311014653,1704870646343,-897.24,0.00030136,2]
[311014655,1704870646354,-500.0,0.00030136,2]
[311014657,1704870646364,-500.0,0.00030136,2]
[311014659,1704870646375,-659.64,0.00030136,2]
[311014661,1704870646386,-708.68,0.00030136,2]
[311014663,1704870646396,-500.0,0.00030136,2]
[311014665,1704870646406,-552.31,0.00030136,2]
[311014667,1704870646415,-979.93,0.00030136,2]
[311014669,1704870646425,-500.0,0.00030136,2]
[311014671,1704870646435,-500.0,0.00030136,2]
[311014673,1704870646444,-2336.45,0.00030136,2]
[311014675,1704870646454,-507.97,0.00030136,2]
[311014677,1704870646463,-619.25,0.00030136,2]
[311014679,1704870646474,-500.0,0.00030136,2]
[311014681,1704870646483,-500.0,0.00030136,2]
[311014683,1704870646493,-500.0,0.00030136,2]
[311014685,1704870646502,-500.0,0.00030136,2]
[311014687,1704870646511,-500.0,0.00030136,2]
[311014689,1704870646521,-500.0,0.00030136,2]
[311014691,1704870646531,-502.72044851,0.00030136,2]
[311014693,1704870646541,-500.0,0.00030136,2]
[311014695,1704870646550,-500.0,0.00030136,2]
[311014697,1704870646559,-801.43,0.00030136,2]
[311014699,1704870646570,-596.71,0.00030136,2]
[311014701,1704870646579,-500.0,0.00030136,2]
[311014703,1704870646589,-500.0,0.00030136,2]
[311014705,1704870646598,-667.54,0.00030136,2]
[311014707,1704870646608,-500.0,0.00030136,2]
[311014709,1704870646617,-500.0,0.00030136,2]
[311014711,1704870646627,-500.0,0.00030136,2]
[311014713,1704870646636,-500.0,0.00030136,2]
[311014715,1704870646646,-481.54187821,0.00030136,2]
[311014717,1704870646655,-500.0,0.00030136,2]
[311014719,1704870646664,-500.0,0.00030136,2]
[311014721,1704870646673,-622.85,0.00030136,2]
[311014723,1704870646682,-2185.28,0.00030136,2]
[311014725,1704870646691,-547.52079333,0.00030136,2]
[311014727,1704870646700,-500.0,0.00030136,2]
[311014729,1704870646709,-500.0,0.00030136,2]
[311014731,1704870646719,-500.0,0.00030136,2]
[311014733,1704870646728,-500.0,0.00030136,2]
[311014735,1704870646737,-500.0,0.00030136,2]
[311014737,1704870646746,-500.0,0.00030136,2]
[311014739,1704870646756,-500.0,0.00030136,2]
[311014741,1704870646765,-500.0,0.00030136,2]
[311014743,1704870646774,-792.75,0.00030136,2]
[311014746,1704870646783,-500.0,0.00030136,2]
[311014747,1704870646793,-500.0,0.00030136,2]
[311014750,1704870646803,-500.0,0.00030136,2]
[311014752,1704870646813,-513.73,0.00030136,2]
[311014754,1704870646824,-500.0,0.00030136,2]
[311014756,1704870646833,-500.0,0.00030136,2]
[311014758,1704870646842,-500.0,0.00030136,2]
[311014760,1704870646851,-500.96406293,0.00030136,2]
[311014762,1704870646860,-500.0,0.00030136,2]
[311014764,1704870646869,-500.0,0.00030136,2]
[311014766,1704870646879,-500.0,0.00030136,2]
[311014768,1704870646888,-1659.71,0.00030136,2]
[311014770,1704870646897,-871.24,0.00030136,2]
[311014772,1704870646906,-500.0,0.00030136,2]
[311014774,1704870646916,-860.8,0.00030136,2]
[311014776,1704870646925,-1000.0,0.00030136,2]
[311014778,1704870646934,-240.6671544,0.00030136,2]
[311014780,1704870646943,-500.0,0.00030136,2]
[311014782,1704870646956,-500.0,0.00030136,2]
[311014784,1704870646965,-500.0,0.00030136,2]
[311014786,1704870646974,-567.2,0.00030136,2]
[311014788,1704870646983,-1196.39,0.00030136,2]
[311014790,1704870646992,-555.18077561,0.00030136,2]
[311014792,1704870647001,-500.0,0.00030136,2]
[311014794,1704870647011,-528.45,0.00030136,2]
[311014796,1704870647020,-500.0,0.00030136,2]
[311014798,1704870647029,-1299.32,0.00030136,2]
[311014800,1704870647038,-500.0,0.00030136,2]
[311014802,1704870647047,-964.74,0.00030136,2]
[311014804,1704870647057,-3584.16,0.00030136,2]
[311014806,1704870647066,-1292.9,0.00030136,2]
[311014808,1704870647076,-2655.74,0.00030136,2]
[311014810,1704870647085,-500.0,0.00030136,2]
[311014812,1704870647094,-500.0,0.00030136,2]
[311014814,1704870647103,-703.04,0.00030136,2]
[311014816,1704870647113,-500.0,0.00030136,2]
[311014818,1704870647122,-1885.34,0.00030136,2]
[311014820,1704870647131,-1248.96,0.00030136,2]
[311014822,1704870647140,-500.0,0.00030136,2]
[311014824,1704870647150,-500.0,0.00030136,2]
[311014826,1704870647159,-500.0,0.00030136,2]
[311014828,1704870647168,-500.0,0.00030136,2]
[311014830,1704870647178,-683.94,0.00030136,2]
[311014832,1704870647187,-500.0,0.00030136,2]
[311014834,1704870647196,-1068.65,0.00030136,2]
[311014836,1704870647205,-500.0,0.00030136,2]
[311014838,1704870647214,-500.0,0.00030136,2]
[311014840,1704870647224,-2037.21,0.00030136,2]
[311014842,1704870647233,-500.0,0.00030136,2]
[311014844,1704870647242,-500.0,0.00030136,2]
[311014846,1704870647251,-500.0,0.00030136,2]
[311014848,1704870647261,-500.0,0.00030136,2]
[311014850,1704870647270,-500.0,0.00030136,2]
[311014852,1704870647279,-500.0,0.00030136,2]
[311014854,1704870647288,-500.0,0.00030136,2]
[311014856,1704870647297,-500.0,0.00030136,2]
[311014859,1704870647307,-1304.93,0.00030136,2]
[311014860,1704870647321,-1726.33,0.00030136,2]
[311014862,1704870647340,-1143.96,0.00030136,2]
[311014865,1704870647350,-500.0,0.00030136,2]
[311014866,1704870647359,-1118.46,0.00030136,2]
[311014868,1704870647368,-500.0,0.00030136,2]